fUST/lending_fUST_20240104
["ID","MTS","AMOUNT","RATE_DAILY","PERIOD"]
[310087466,1704311442755,-151.64663113,0.00043551,14]
[310087467,1704311442765,-151.64663113,0.00043551,14]
[310087468,1704311442775,-151.64663113,0.00043551,14]
[310087469,1704311442785,-151.64663113,0.00043551,14]
[310087470,1704311442794,-151.64663113,0.00043551,14]
[310087471,1704311442805,-151.64663113,0.00043551,14]
[310087472,1704311442816,-151.64663113,0.00043551,14]
[310087473,1704311442826,-151.64663113,0.00043551,14]
[310087474,1704311442836,-151.64663113,0.00043551,14]
[310087475,1704311442845,-151.64663113,0.00043551,14]
[310087476,1704311442855,-151.64663113,0.00043551,14]
[310087477,1704311442867,-151.64663113,0.00043551,14]
[310087478,1704311442880,-151.64663113,0.00043551,14]
[310087479,1704311442890,-151.64663113,0.00043551,14]
[310087480,1704311442899,-151.64663113,0.00043551,14]
[310087481,1704311442908,-151.64663113,0.00043551,14]
[310087482,1704311442918,-151.64663113,0.00043551,14]
[310087483,1704311442928,-151.64663113,0.00043551,14]
[310087484,1704311442938,-151.64663113,0.00043551,14]
[310087485,1704311442947,-151.64663113,0.00043551,14]
[310087486,1704311442957,-151.64663113,0.00043551,14]
[310087487,1704311442966,-151.64663138,0.00043551,14]
[310087489,1704311443046,-250.0,0.00043835,10]
[310087490,1704311443056,-550.0,0.00043835,7]
[310087491,1704311443065,-1000.0,0.00043959,15]
[310087493,1704311443075,-326.50590537,0.00043973,7]
[310087495,1704311443088,-983.70006597,0.00043973,7]
[310087563,1704311446815,-0.57613368,0.00021325,2]
[310087564,1704311446833,-359.60095832,0.00021325,2]
[310087565,1704311446842,-411.79848617,0.00021325,2]
[310087566,1704311447871,545.99331309,0.00019209,2]
[310087567,1704311448745,3248.2945108,0.00019209,2]
[310087568,1704311452668,1365.4535498,0.00019209,2]
[310087569,1704311452697,2460.916262,0.00019209,2]
[310087570,1704311459200,616.18146099,0.00019209,2]
[310087571,1704311469850,544.48918958,0.00019209,2]
[310087575,1704311470666,614.26272412,0.00019209,2]
[310087576,1704311489864,545.99331309,0.00019209,2]
[310087577,1704311491372,154.84515485,0.00019209,2]
[310087579,1704311496376,212.02766585,0.00019209,2]
[310087580,1704311496814,1803.78571926,0.00019209,2]
[310087581,1704311509886,200.14978145,0.00019209,2]
[310087582,1704311513370,155.28663945,0.00019209,2]
[310087583,1704311581440,250.0,0.0002032,2]
[310087584,1704311624294,-227.57173235,0.00021,2]
[310087585,1704311624441,-4.64432107,0.00021,2]
[310087588,1704311639297,109.05209176,0.00020487,2]
[310087589,1704311639325,99.24330224,0.00020487,2]
[310087590,1704311661844,184.23577869,0.0001,2]
[310087591,1704311661872,83.9493977,0.0001,2]
[310087593,1704311665543,-5000.0,0.00021,2]
[310087594,1704311665747,-5000.0,0.00021,2]
[310087595,1704311665863,-5000.0,0.00021,2]
[310087596,1704311665982,-730.48458562,0.00021,2]
[310087597,1704311666019,-1037.00033796,0.00021,2]
[310087598,1704311670338,-456.80219842,0.00020999,2]
[310087599,1704311670483,-9.32249385,0.00020999,2]
[310087600,1704311672623,456.80219842,0.00020491,2]
[310087601,1704311673095,-1281.98918303,0.00020491,2]
[310087602,1704311673231,-26.16304455,0.00020491,2]
[310087605,1704311943973,376.68333369,0.00020172,2]
[310087606,1704311944004,17692.06208936,0.00020172,2]
[310087607,1704311944033,6831.25457695,0.00020172,2]
[310087609,1704312234921,-2048.34834948,0.000211,2]
[310087610,1704312235146,-41.80302754,0.000211,2]
[310087611,1704312239830,-3658.09042711,0.00021099,2]
[310087612,1704312240186,-74.65490668,0.00021099,2]
[310087613,1704312242340,-240.71717346,0.000211,2]
[310087614,1704312242382,-4.91259538,0.000211,2]
[310087615,1704312246579,-4974.53760474,0.000211,2]
[310087616,1704312246694,-101.52117561,0.000211,2]
[310087617,1704312252741,-5000.0,0.000211,2]
[310087618,1704312252888,-5000.0,0.000211,2]
[310087619,1704312253036,-5000.0,0.000211,2]
[310087620,1704312253182,-5000.0,0.000211,2]
[310087621,1704312253337,-831.85137104,0.000211,2]
[310087622,1704312253397,-4168.14862896,0.000211,2]
[310087623,1704312253460,-3764.05699137,0.000211,2]
[310087624,1704312253804,1235.94300863,0.00021095,3]
[310087625,1704312253849,3940.46699137,0.00021095,3]
[310087626,1704312255686,859.47841956,0.000211,2]
[310087627,1704312255908,200.05458907,0.000211,2]
[310087628,1704312255959,84.46864212,0.000211,2]
[310087629,1704312261387,-1263.15179495,0.000211,2]
[310087630,1704312261626,-25.77860806,0.000211,2]
[310087631,1704312263196,1237.37318689,0.000211,2]
[310087632,1704312263238,1263.15179495,0.000211,2]
[310087633,1704312263302,1263.15179495,0.000211,2]
[310087634,1704312263573,-1017.43991094,0.000211,2]
[310087635,1704312263624,-2631.68489228,0.000211,2]
[310087636,1704312265026,406.23224577,0.0002101,2]
[310087637,1704312265376,154.84515485,0.000211,2]
[310087638,1704312266103,475.29215014,0.00021095,3]
[310087639,1704312266149,997.09111272,0.00021095,3]
[310087640,1704312266188,997.09111272,0.00021095,3]
[310087641,1704312266247,997.09111272,0.00021095,3]
[310087642,1704312266495,-847.1145117,0.00021095,3]
[310087643,1704312268101,-391.39944373,0.000211,2]
[310087644,1704312268412,-7.98774375,0.000211,2]
[310087645,1704312278006,-5000.0,0.00021095,3]
[310087646,1704312278112,-1537.72,0.00021095,3]
[310087647,1704312284925,-4343.35108428,0.00021094,2]
[310087648,1704312285168,-88.63981805,0.00021094,2]
[310087649,1704312287803,-154.84515485,0.000211,4]
[310087650,1704312287861,-148.65134866,0.000211,2]
[310087651,1704312288024,-6.19380619,0.000211,2]
[310087652,1704312288074,-154.84515485,0.000211,2]
[310087653,1704312289294,142.45754247,0.00021095,3]
[310087654,1704312289335,303.49650351,0.00021095,3]
[310087655,1704312289734,-5000.0,0.00021095,3]
[310087656,1704312289860,-2.14595402,0.00021095,3]
[310087657,1704312301539,-2048.34834948,0.000211,2]
[310087658,1704312301659,-41.80302754,0.000211,2]
[310087659,1704312301775,2006.54532194,0.00021092,3]
[310087660,1704312301823,-2048.34834948,0.00021092,3]
[310087661,1704312301931,-485.18632858,0.00021092,3]
[310087662,1704312303513,154.84515485,0.00018991,3]
[310087663,1704312314747,-3707.732,0.00021092,3]
[310087664,1704312314963,-75.668,0.00021092,3]
[310087665,1704312315416,-272.0912719,0.000211,2]
[310087666,1704312315566,-5.5528831,0.000211,2]
[310087667,1704312320539,-3658.09042711,0.00021091,2]
[310087668,1704312320763,-74.65490668,0.00021091,2]
[310087669,1704312323524,154.84515485,0.0001899,3]
[310087670,1704312325081,-4974.53760474,0.000211,2]
[310087671,1704312325247,-101.52117561,0.000211,2]
[310087672,1704312327370,3152.83,0.00021092,3]
[310087673,1704312331426,-5000.0,0.000211,2]
[310087674,1704312331699,-2932.20562033,0.000211,2]
[310087675,1704312332631,944.51958651,0.000211,2]
[310087676,1704312334186,859.47841956,0.000211,2]
[310087677,1704312334811,925.62919478,0.000211,2]
[310087678,1704312334847,925.62919478,0.000211,2]
[310087679,1704312335248,-5000.0,0.000211,2]
[310087680,1704312335391,-5000.0,0.000211,2]
[310087681,1704312335633,-5000.0,0.000211,2]
[310087682,1704312335683,-3980.59298148,0.000211,2]
[310087683,1704312335784,1019.40701852,0.000211,2]
[310087684,1704312335818,649.33816884,0.000211,2]
[310087685,1704312339905,-2574.8128,0.00021092,3]
[310087686,1704312339994,-52.5472,0.00021092,3]
[310087687,1704312342455,-2579.05119443,0.000211,2]
[310087688,1704312342595,-52.63369785,0.000211,2]
[310087689,1704312344585,590.516407,0.000211,2]
[310087690,1704312345232,1288.93040301,0.000211,2]
[310087691,1704312345520,154.84515485,0.0001899,3]
[310087692,1704312347075,-5000.0,0.000211,2]
[310087693,1704312347387,-76.05878035,0.000211,2]
[310087694,1704312347422,-888.61992172,0.000211,2]
[310087695,1704312348933,4035.32129793,0.000211,2]
[310087696,1704312348966,5000.0,0.000211,2]
[310087697,1704312348999,5000.0,0.000211,2]
[310087698,1704312349051,945.38512803,0.000211,2]
[310087699,1704312349085,945.38512803,0.000211,2]
[310087700,1704312349264,-4905.75981705,0.000211,2]
[310087701,1704312350202,94.24018295,0.00021092,3]
[310087702,1704312350239,2095.22981705,0.00021092,3]
[310087703,1704312351021,2904.77018295,0.000211,2]
[310087704,1704312351056,871.9878376,0.000211,2]
[310087705,1704312352174,284.74082257,0.000211,2]
[310087706,1704312356682,-5000.0,0.000211,2]
[310087707,1704312356972,-5000.0,0.000211,2]
[310087708,1704312357256,-5000.0,0.000211,2]
[310087709,1704312357361,-5000.0,0.000211,2]
[310087710,1704312357539,-5000.0,0.000211,2]
[310087711,1704312357653,-5000.0,0.000211,2]
[310087712,1704312357774,-5000.0,0.000211,2]
[310087713,1704312357865,-1770.35479684,0.000211,2]
[310087714,1704312359343,1000.35709437,0.000211,2]
[310087715,1704312360027,1735.38803023,0.000211,2]
[310087716,1704312361346,268.73332704,0.00021099,2]
[310087717,1704312362392,527.56889331,0.000211,2]
[310087718,1704312362437,184.04773213,0.00021092,3]
[310087719,1704312362805,-517.01751544,0.00021092,3]
[310087720,1704312362860,-1123.49475243,0.00021092,3]
[310087721,1704312364840,517.01751544,0.000211,2]
[310087722,1704312365355,-5000.0,0.000211,2]
[310087723,1704312365433,-1056.88813314,0.000211,2]
[310087724,1704312365772,154.84515485,0.0001899,3]
[310087725,1704312370668,-5000.0,0.000211,2]
[310087726,1704312371160,-3037.27565056,0.000211,2]
[310087727,1704312374460,-1490.0508,0.00021092,3]
[310087728,1704312374622,-30.4092,0.00021092,3]
[310087729,1704312375135,-2469.57796714,0.000211,2]
[310087730,1704312375352,-50.39955035,0.000211,2]
[310087731,1704312381638,154.84515485,0.0001899,3]
[310087732,1704312385350,412.33070676,0.0002,2]
[310087733,1704312386369,-1241.709,0.00021092,3]
[310087734,1704312386547,-25.341,0.00021092,3]
[310087735,1704312397977,-1034.7624,0.00021092,3]
[310087736,1704312398136,-21.1176,0.00021092,3]
[310087737,1704312403520,154.84515485,0.0001899,3]
[310087738,1704312403829,-154.84515485,0.00021091,2]
[310087739,1704312403859,-245.01276922,0.00021091,2]
[310087740,1704312404034,-8.1603658,0.00021091,2]
[310087741,1704312409188,-862.302,0.00021092,3]
[310087742,1704312409444,-17.598,0.00021092,3]
[310087743,1704312419620,154.84515485,0.0001899,3]
[310087744,1704312419999,-171.29687562,0.000211,2]
[310087745,1704312420034,-244.68373481,0.000211,2]
[310087746,1704312420213,-8.48940021,0.000211,2]
[310087747,1704312420335,407.49121022,0.00021092,3]
[310087748,1704312420379,-325.75878978,0.00021092,3]
[310087749,1704312432994,-598.8192,0.00021092,3]
[310087750,1704312433130,-12.2208,0.00021092,3]
[310087751,1704312437519,154.84515485,0.0001899,3]
[310087752,1704312442393,-247.84264586,0.000211,2]
[310087753,1704312442575,-5.05801318,0.000211,2]
[310087754,1704312444495,242.78463268,0.00021092,3]
[310087755,1704312444526,247.84264586,0.00021092,3]
[310087756,1704312444897,-18.57272146,0.00021092,3]
[310087757,1704312456487,-415.8434,0.00021092,3]
[310087758,1704312456565,-8.4866,0.00021092,3]
[310087759,1704312457525,154.84515485,0.0001899,3]
[310087760,1704312468145,-346.5378,0.00021092,3]
[310087761,1704312468437,-7.0722,0.00021092,3]
[310087762,1704312470660,-261.00413943,0.00021101,2]
[310087763,1704312470692,-4431.99090233,0.00021101,2]
[310087764,1704312470725,-154.89156971,0.00021101,2]
[310087765,1704312470786,-13804.22677706,0.00021102,2]
[310087766,1704312477528,154.84515485,0.00019599,3]
[310087767,1704312479661,-288.7864,0.00021093,3]
[310087768,1704312479738,-5.8936,0.00021093,3]
[310087769,1704312497528,154.84515485,0.00019599,3]
[310087770,1704312504357,-240.6488,0.00021093,3]
[310087771,1704312504826,-4.9112,0.00021093,3]
[310087772,1704312515149,-200.5472,0.00021093,3]
[310087773,1704312515236,-4.0928,0.00021093,3]
[310087774,1704312517534,154.84515485,0.00019599,3]
[310087775,1704312523760,-683.05428955,0.00020688,2]
[310087776,1704312523788,-89.28608276,0.00021102,2]
[310087777,1704312523819,-175.18522756,0.00021102,2]
[310087778,1704312538979,-835.6264,0.00021092,3]
[310087779,1704312539071,-17.0536,0.00021092,3]
[310087780,1704312539641,154.84515485,0.0001899,3]
[310087781,1704312541701,-154.84515485,0.000211,2]
[310087782,1704312541724,-675.8919533,0.00021101,2]
[310087783,1704312541746,-727.26289185,0.00021101,2]
[310087784,1704312547459,-4343.35108428,0.000211,2]
[310087785,1704312547607,-88.63981805,0.000211,2]
[310087786,1704312548782,-791.29088431,0.00021101,2]
[310087787,1704312548831,-232.40871023,0.00021101,2]
[310087788,1704312549540,170.53,0.00021092,3]
[310087789,1704312555542,154.84515485,0.0001899,3]
[310087790,1704312562890,-231.09814078,0.000211,2]
[310087791,1704312562921,-241.3962956,0.000211,2]
[310087792,1704312563080,-9.6427436,0.000211,2]
[310087793,1704312563113,-462.85169278,0.000211,2]
[310087794,1704312563188,-472.49443638,0.000211,2]
[310087795,1704312563307,-246.01825842,0.000211,2]
[310087796,1704312563399,-246.01825842,0.000211,2]
[310087797,1704312563527,-246.01825842,0.000211,2]
[310087798,1704312563635,-2758.58999791,0.000211,2]
[310087799,1704312573532,154.84515485,0.0001899,3]
[310087800,1704312573696,-811.7648762,0.00021101,2]
[310087801,1704312573753,-153.06008552,0.00021101,2]
[310087803,1704312581528,-1131.94316273,0.000211,2]
[310087804,1704312581721,-23.10088087,0.000211,2]
[310087806,1704312593550,154.84515485,0.0001899,3]
[310087807,1704312598711,-831.06137543,0.00021101,2]
[310087808,1704312598976,-263.7003234,0.00021101,2]
[310087809,1704312613566,154.84515485,0.0001899,3]
[310087810,1704312623639,174.513544,0.00020163,2]
[310087825,1704312633774,-4042.6393257,0.00021101,2]
[310087827,1704312633784,-43246.55592083,0.00021102,2]
[310087829,1704312633796,-734.59600629,0.00021102,2]
[310087830,1704312633810,-4847.58631331,0.00021102,2]
[310087845,1704312635552,154.84515485,0.0001899,3]
[310087879,1704312638005,-15353.53733,0.00021102,2]
[310087880,1704312638015,-356.2753669,0.00021103,2]
[310087881,1704312638024,-355.09539677,0.00021103,2]
[310087882,1704312638033,-4776.62194717,0.00021103,2]
[310087883,1704312638043,-191.31172086,0.00021103,2]
[310087884,1704312638051,-154.84515485,0.00021117,2]
[310087885,1704312638060,-2067.23046819,0.00021311,2]
[310087887,1704312638073,-571.17664728,0.00021312,2]
[310087889,1704312638083,-2097.15281013,0.00021323,2]
[310087891,1704312638093,-468.93451344,0.00021323,2]
[310087892,1704312638104,-1147.54335157,0.00021777,2]
[310087893,1704312638113,-254.91008809,0.00021777,2]
[310087894,1704312638121,-355.54168227,0.00021777,2]
[310087895,1704312638134,-933.38872074,0.00021777,2]
[310087896,1704312638143,-3732.74533379,0.00021777,2]
[310087897,1704312638152,-5079.68121001,0.00021777,2]
[310087898,1704312638162,-309.61299072,0.00021777,2]
[310087899,1704312638172,-10296.36619062,0.00021779,2]
[310087900,1704312638182,-1795.60910665,0.00021779,2]
[310087901,1704312638229,-8261.97806396,0.00021779,2]
[310087902,1704312638241,-4546.04663877,0.00021779,2]
[310087903,1704312638251,-166.666666,0.00021918,2]
[310087904,1704312638261,-292.44148742,0.00022,4]
[310087905,1704312638270,-2168.14570959,0.00022,2]
[310087906,1704312638282,-879.08806306,0.00022,2]
[310087915,1704312641649,-918.2180004,0.00022,2]
[310087916,1704312641725,-119.46995101,0.00022,2]
[310087917,1704312641737,-166.666666,0.00022431,2]
[310087918,1704312641747,-116.30538264,0.00022944,2]
[310087952,1704312645639,-50.36128336,0.00022944,2]
[310087953,1704312645648,-200.0,0.00023211,7]
[310087954,1704312645657,-166.666666,0.00023456,2]
[310087955,1704312645667,-130.02951651,0.00023969,2]
[310087956,1704312645678,-36.63714949,0.00023969,2]
[310087957,1704312645687,-576.15915064,0.0002399,2]
[310087958,1704312645699,-1557.57101773,0.0002399,2]
[310087959,1704312645717,-285.73979238,0.000211,2]
[310087969,1704312646053,-7567.44868026,0.000211,2]
[310087970,1704312646062,-947.65097854,0.0002399,2]
[310087971,1704312646071,-3385.202222,0.00024,2]
[310087972,1704312646081,-166.666666,0.00024482,2]
[310087973,1704312646090,-154.84515485,0.00025,2]
[310087974,1704312646100,-13.73507409,0.00025,2]
[310087975,1704312646112,-599.23279006,0.00025,2]
[310087976,1704312646122,-996.76856584,0.00025,2]
[310087977,1704312646131,-701.97831771,0.00025,10]
[310087978,1704312646140,-3000.0,0.00025,2]
[310087979,1704312646150,-16245.1924149,0.00025,2]
[310087980,1704312646159,-2693.63283635,0.00025,2]
[310087981,1704312646171,-2009.95199644,0.00025,2]
[310087982,1704312646180,-7882.48696374,0.00025297,2]
[310087983,1704312646189,-280.0,0.00025532,7]
[310087984,1704312646198,-781.90839515,0.00028,2]
[310087985,1704312646208,-391.0,0.00028085,15]
[310087986,1704312646218,-1320.81396188,0.000297,2]
[310087987,1704312646228,-11436.34099521,0.0002979,7]
[310087988,1704312646237,-638.44894353,0.0003,4]
[310087989,1704312646246,-2887.94009463,0.0003,4]
[310087990,1704312646256,-6534.9223021,0.0003,4]
[310087991,1704312646265,-171.0,0.0003,2]
[310087992,1704312646275,-200.0,0.00030894,15]
[310087993,1704312646284,-348.0,0.00030894,15]
[310087994,1704312646294,-312.0,0.00033,2]
[310087995,1704312646304,-169.0,0.00033,2]
[310087996,1704312646313,-312.0,0.00033151,2]
[310087997,1704312646323,-200.0,0.00033983,15]
[310087998,1704312646333,-200.0,0.00033983,15]
[310087999,1704312646342,-368.0,0.00033983,15]
[310088000,1704312646351,-1000.0,0.00034,7]
[310088001,1704312646360,-4657.66153763,0.00034,2]
[310088002,1704312646369,-1387.513231,0.00034521,2]
[310088003,1704312646379,-312.0,0.00034521,2]
[310088004,1704312646389,-1246.93759221,0.00034728,12]
[310088005,1704312646397,-28135.63094976,0.00034898,120]
[310088006,1704312646407,-14722.14621061,0.000349,2]
[310088007,1704312646416,-638.68702831,0.00034999,2]
[310088008,1704312646426,-627.13732788,0.00034999,2]
[310088009,1704312646436,-1454.45537407,0.00035,14]
[310088010,1704312646445,-590.27084275,0.00035,2]
[310088011,1704312646454,-4177.42015254,0.00035,4]
[310088012,1704312646464,-20000.0,0.00035,3]
[310088013,1704312646474,-10128.09488362,0.00035,2]
[310088014,1704312646483,-3538.7366841,0.00035,2]
[310088015,1704312646492,-395.0,0.00035452,2]
[310088016,1704312646501,-8000.0,0.00035455,14]
[310088017,1704312646511,-46978.44184389,0.000355,14]
[310088018,1704312646521,-519.832385,0.00035616,120]
[310088019,1704312646597,-1387.513231,0.00035798,2]
[310088020,1704312646606,-232.57470138,0.000359,4]
[310088021,1704312646615,-11532.24564201,0.00036,30]
[310088022,1704312646624,-229.99225833,0.00036,4]
[310088023,1704312646634,-313.0,0.00036247,2]
[310088024,1704312646643,-1387.513231,0.00037075,2]
[310088025,1704312646653,-216.53348997,0.0003724,2]
[310088026,1704312646663,-200.0,0.00037382,15]
[310088027,1704312646673,-287.0,0.00037382,15]
[310088028,1704312646683,-1959.8295184,0.00038,30]
[310088029,1704312646692,-495.36101999,0.00038,120]
[310088030,1704312646703,-150.83408251,0.00038265,2]
[310088031,1704312646714,-1387.513231,0.00038352,2]
[310088032,1704312646723,-500.0,0.00038356,2]
[310088033,1704312646732,-312.0,0.00038663,14]
[310088034,1704312646742,-445.0,0.0003874,2]
[310088035,1704312646752,-301.66816502,0.00038908,4]
[310088036,1704312646761,-223.55,0.00039338,60]
[310088037,1704312646771,-150.0,0.00039338,60]
[310088038,1704312646780,-171.0,0.00039338,7]
[310088039,1704312646789,-150.0,0.00039348,60]
[310088040,1704312646800,-150.0,0.00039348,60]
[310088041,1704312646810,-171.0,0.00039348,7]
[310088042,1704312646819,-150.0,0.00039358,60]
[310088043,1704312646829,-150.0,0.00039358,60]
[310088044,1704312646838,-171.0,0.00039358,7]
[310088045,1704312646849,-10614.05205962,0.00039368,2]
[310088046,1704312646858,-603.33633004,0.00039562,7]
[310088047,1704312646868,-1387.513231,0.0003963,2]
[310088048,1704312646877,-433.99263248,0.00039866,2]
[310088049,1704312646886,-8261.30981887,0.00039877,2]
[310088050,1704312646896,-668.10373566,0.00039989,2]
[310088051,1704312646905,-4031.97114424,0.0003999,4]
[310088052,1704312646914,-154.84515485,0.0004,4]
[310088053,1704312646925,-1278.30335464,0.0004,4]
[310088054,1704312646934,-166.81042853,0.00040227,4]
[310088055,1704312646942,-2937.62973098,0.00040497,4]
[310088056,1704312646951,-252.98013591,0.00040497,4]
[310088057,1704312646961,-464.41430275,0.00040498,4]
[310088058,1704312646970,-640.99686407,0.00040498,10]
[310088059,1704312646980,-1206.67266007,0.00040563,30]
[310088060,1704312646990,-547.64642284,0.00040786,4]
[310088061,1704312646999,-12199.71031571,0.00040787,4]
[310088062,1704312647009,-308.50835343,0.00040787,4]
[310088063,1704312647018,-362.07678307,0.00040787,4]
[310088064,1704312647027,-1078.65782774,0.00040787,4]
[310088065,1704312647037,-641.42095347,0.00040787,4]
[310088066,1704312647049,-1512.67091193,0.00040787,4]
[310088067,1704312647057,-404.18461016,0.00040787,4]
[310088068,1704312647067,-2517.65047547,0.00040788,4]
[310088069,1704312647077,-309.67496581,0.00040788,4]
[310088070,1704312647087,-2213.63910466,0.00040788,4]
[310088071,1704312647096,-294.73769483,0.00040788,4]
[310088072,1704312647106,-693.04454925,0.00040788,4]
[310088073,1704312647116,-312.0,0.00041079,14]
[310088074,1704312647125,-845.8846035,0.00041096,15]
[310088075,1704312647134,-312.0,0.00041425,90]
[310088076,1704312647144,-777.0,0.000415,4]
[310088077,1704312647155,-519.832385,0.00041553,120]
[310088078,1704312647172,-13904.99350998,0.000418,5]
[310088079,1704312647188,-23543.26946424,0.00042,2]
[310088080,1704312647203,-547.90751537,0.00042,10]
[310088081,1704312647217,-495.0,0.00042192,4]
[310088082,1704312647231,-1500.0,0.000427,3]
[310088083,1704312647246,-2658.20930316,0.00042747,2]
[310088084,1704312647260,-809.59633565,0.00042747,5]
[310088085,1704312647274,-5024.13774069,0.00043,8]
[310088086,1704312647287,-1055.85364277,0.00043,7]
[310088087,1704312647300,-2502.35131199,0.00043,5]
[310088088,1704312647314,-312.0,0.00043496,90]
[310088089,1704312647328,-155.0,0.000435,2]
[310088090,1704312647343,-1500.0,0.000437,3]
[310088091,1704312647354,-5000.0,0.00043807,15]
[310088092,1704312647370,-5000.0,0.00043807,15]
[310088093,1704312647385,-250.0,0.00043835,10]
[310088094,1704312647398,-464.94485982,0.000439,3]
[310088095,1704312647411,-39825.6042281,0.000439,2]
[310088096,1704312647425,-154.84515485,0.00043998,4]
[310088097,1704312647440,-454.95723,0.00043998,7]
[310088098,1704312647456,-454.95723,0.00043998,7]
[310088099,1704312647472,-331.205838,0.00043998,7]
[310088100,1704312647485,-331.205838,0.00043998,7]
[310088101,1704312647496,-162.630381,0.00043998,2]
[310088102,1704312647507,-500.0,0.00043999,4]
[310088103,1704312647521,-180.83399236,0.00043999,4]
[310088104,1704312647535,-505.3227688,0.00043999,4]
[310088105,1704312647548,-500.0,0.00043999,4]
[310088106,1704312647559,-500.0,0.00043999,4]
[310088107,1704312647570,-500.0,0.00043999,4]
[310088108,1704312647583,-435.84314857,0.00043999,4]
[310088109,1704312647596,-556.38684566,0.00043999,4]
[310088110,1704312647607,-407.17418931,0.00043999,4]
[310088111,1704312647620,-383.21221699,0.00043999,7]
[310088112,1704312647632,-470.35299591,0.00043999,7]
[310088113,1704312647644,-1557.57101773,0.00044,90]
[310088114,1704312647655,-153.0,0.00044144,2]
[310088115,1704312647666,-153.0,0.00044144,2]
[310088116,1704312647678,-177.0,0.00044211,2]
[310088117,1704312647690,-40004.24245206,0.0004448,40]
[310088118,1704312647702,-261.07439125,0.00044498,120]
[310088119,1704312647715,-168.02,0.00044498,7]
[310088120,1704312647726,-168.02,0.00044498,7]
[310088121,1704312647738,-168.01,0.00044498,7]
[310088122,1704312647749,-168.01,0.00044498,7]
[310088123,1704312647761,-168.01,0.00044498,7]
[310088124,1704312647772,-168.01,0.00044498,7]
[310088125,1704312647784,-168.01,0.00044498,7]
[310088126,1704312647795,-168.01,0.00044498,7]
[310088127,1704312647806,-168.01,0.00044498,7]
[310088128,1704312647818,-168.01,0.00044498,7]
[310088129,1704312647829,-108043.78951899,0.00044499,2]
[310088142,1704312935261,-292.44148742,0.00022,4]
[310088143,1704312954214,292.44148742,0.00022,4]
[310088144,1704312974220,292.44148742,0.00022,4]
[310088145,1704312994218,292.44148742,0.00022,4]
[310088146,1704313010216,292.44148742,0.00022,4]
[310088147,1704313028230,292.44148742,0.00022,4]
[310088148,1704313044261,292.44148742,0.00022,4]
[310088149,1704313064249,292.44148742,0.00022,4]
[310088150,1704313084962,292.44148742,0.00022,4]
[310088151,1704313102234,292.00713244,0.00022,4]
[310088152,1704313285748,154.84515485,0.00021998,4]
[310088175,1704313442536,-75999.0,0.00033,30]
[310088193,1704313626775,154.84515485,0.00021987,4]
[310088195,1704313698478,-293.96606539,0.00021985,2]
[310088196,1704313698507,-154.84515485,0.00021986,2]
[310088197,1704313698535,-154.84515485,0.00021987,2]
[310088198,1704313698563,-130.30124302,0.00021987,2]
[310088199,1704313698599,-294.62899371,0.00021987,2]
[310088201,1704313773475,-754.52935035,0.00021986,2]
[310088202,1704313773532,-467.13150268,0.00021986,2]
[310088203,1704313798684,-778.96256741,0.00021986,2]
[310088204,1704313798746,-778.96256741,0.00021986,2]
[310088205,1704313798796,-161.30803812,0.00021986,2]
[310088285,1704313838267,-1619.86288852,0.00021986,2]
[310088395,1704313841261,-1091.5433359,0.00021986,2]
[310088404,1704313842971,-838.99061809,0.00021986,2]
[310088410,1704313846057,-182.34849128,0.00021986,2]
[310088411,1704313846067,-618.56145052,0.00021986,2]
[310088412,1704313846078,-156.1324687,0.00021987,2]
[310088413,1704313846088,-200.0,0.00024184,7]
[310088414,1704313846097,-1766.68967922,0.00024897,2]
[310088415,1704313846106,-184.76548466,0.00024897,2]
[310088416,1704313846116,-166.666666,0.0002494,2]
[310088417,1704313846125,-806.662028,0.00024945,2]